[Event "*** Titled Tuesday Blitz"]
[Site "Chess.com"]
[Date "2020.02.04"]
[Round "6"]
[White "aa175"]
[Black "andrzej"]
[Result "0-1"]
[WhiteElo "2256"]
[BlackElo "2359"]
[TimeControl "180+2"]
[EndTime "14:17:52 PST"]
[Termination "andrzej won by resignation"]

1. d4 {[%clk 0:03:01.9]} 1... Nf6 {[%clk 0:03:00.2]} 2. Nf3 {[%clk 0:03:03.2]}
2... e6 {[%clk 0:03:01.2]} 3. Bf4 {[%clk 0:03:02.3]} 3... d5 {[%clk 0:03:02.5]}
4. e3 {[%clk 0:03:03.6]} 4... Bd6 {[%clk 0:03:03.9]} 5. Bg3 {[%clk 0:03:04.4]}
5... O-O {[%clk 0:03:05.5]} 6. Nbd2 {[%clk 0:03:05.7]} 6... b6 {[%clk
0:03:06.9]} 7. Bd3 {[%clk 0:03:06.9]} 7... c5 {[%clk 0:03:04.7]} 8. c3 {[%clk
0:03:07.3]} 8... Ba6 {[%clk 0:03:05.1]} 9. Bxa6 {[%clk 0:03:03]} 9... Nxa6
{[%clk 0:03:07]} 10. Bxd6 {[%clk 0:02:59.4]} 10... Qxd6 {[%clk 0:03:07.2]} 11.
Ne5 {[%clk 0:03:00.9]} 11... Nb8 {[%clk 0:02:54.4]} 12. O-O {[%clk 0:02:55.9]}
12... Nfd7 {[%clk 0:02:54.5]} 13. f4 {[%clk 0:02:54.4]} 13... f6 {[%clk
0:02:55.4]} 14. Nxd7 {[%clk 0:02:49.3]} 14... Nxd7 {[%clk 0:02:57.3]} 15. Rf3
{[%clk 0:02:48.9]} 15... Rad8 {[%clk 0:02:36.8]} 16. Rh3 {[%clk 0:02:42.8]}
16... cxd4 {[%clk 0:02:14]} 17. cxd4 {[%clk 0:02:40.5]} 17... f5 {[%clk
0:02:13.1]} 18. Nf3 {[%clk 0:02:35.2]} 18... Rc8 {[%clk 0:02:09.6]} 19. Ng5
{[%clk 0:02:11.9]} 19... Nf6 {[%clk 0:02:09.7]} 20. Rc1 {[%clk 0:02:02.3]} 20...
h6 {[%clk 0:02:07.7]} 21. Nf3 {[%clk 0:02:03.1]} 21... Ng4 {[%clk 0:02:01.2]}
22. Ne5 {[%clk 0:02:00.3]} 22... Nxe5 {[%clk 0:02:02]} 23. fxe5 {[%clk
0:02:02.2]} 23... Qb4 {[%clk 0:01:58.5]} 24. b3 {[%clk 0:01:34.6]} 24... f4
{[%clk 0:01:38.3]} 25. Rxc8 {[%clk 0:01:29.1]} 25... Rxc8 {[%clk 0:01:40.2]} 26.
exf4 {[%clk 0:01:28.7]} 26... Qa3 {[%clk 0:01:36.5]} 27. Qg4 {[%clk 0:01:23.4]}
27... Qc1+ {[%clk 0:01:28.9]} 28. Kf2 {[%clk 0:01:24.5]} 28... Rc2+ {[%clk
0:01:29.8]} 29. Kf3 {[%clk 0:01:19.1]} 29... Qf1+ {[%clk 0:01:19.1]} 30. Ke3
{[%clk 0:01:17.4]} 30... Rc3+ {[%clk 0:01:08]} 31. Kd2 {[%clk 0:01:17.5]} 31...
Qc1+ {[%clk 0:01:08.2]} 32. Ke2 {[%clk 0:01:17.4]} 32... Qb2+ {[%clk 0:01:07.3]}
33. Ke1 {[%clk 0:01:14.5]} 33... Rc1+ {[%clk 0:01:07]} 34. Qd1 {[%clk
0:01:15.6]} 34... Rxd1+ {[%clk 0:01:06.5]} 35. Kxd1 {[%clk 0:01:17.5]} 35...
Qxg2 {[%clk 0:01:07.2]} 36. Rc3 {[%clk 0:01:18.1]} 36... Qxa2 {[%clk 0:01:05.4]}
37. f5 {[%clk 0:01:18.1]} 37... Qb1+ {[%clk 0:00:55.9]} 38. Kd2 {[%clk
0:01:17.7]} 38... Qxf5 {[%clk 0:00:56.1]} 39. h4 {[%clk 0:01:19.2]} 39... Qf2+
{[%clk 0:00:55.5]} 40. Kd3 {[%clk 0:01:19.9]} 40... Qxh4 {[%clk 0:00:55.3]} 41.
b4 {[%clk 0:01:20.9]} 41... Qe4+ {[%clk 0:00:54.1]} 42. Kd2 {[%clk 0:01:22.1]}
42... Qxd4+ {[%clk 0:00:55.3]} 43. Rd3 {[%clk 0:01:23.7]} 43... Qxb4+ {[%clk
0:00:55.8]} 44. Kc2 {[%clk 0:01:24.9]} 44... Qc4+ {[%clk 0:00:56.7]} 45. Rc3
{[%clk 0:01:26.1]} 45... Qxc3+ {[%clk 0:00:57.7]} 46. Kb1 {[%clk 0:01:24.1]}
46... Qd2 {[%clk 0:00:53.5]} 0-1

[Event "*** Titled Tuesday Blitz"]
[Site "Chess.com"]
[Date "2020.02.04"]
[Round "6"]
[White "sergiochess83"]
[Black "OparinGrigoriy"]
[Result "1/2-1/2"]
[WhiteElo "2948"]
[BlackElo "3035"]
[TimeControl "180+2"]
[EndTime "14:17:54 PST"]
[Termination "Game drawn by agreement"]

1. e4 {[%clk 0:03:01.9]} 1... e5 {[%clk 0:03:00.5]} 2. Nf3 {[%clk 0:03:02.4]}
2... Nc6 {[%clk 0:03:02.2]} 3. Bb5 {[%clk 0:03:03.1]} 3... a6 {[%clk 0:03:03.7]}
4. Ba4 {[%clk 0:03:04.1]} 4... Nf6 {[%clk 0:03:05.4]} 5. O-O {[%clk 0:03:05.1]}
5... Nxe4 {[%clk 0:03:07]} 6. d4 {[%clk 0:03:01.8]} 6... b5 {[%clk 0:03:08.1]}
7. Bb3 {[%clk 0:03:02.7]} 7... d5 {[%clk 0:03:09.7]} 8. dxe5 {[%clk 0:03:01.7]}
8... Be6 {[%clk 0:03:11.3]} 9. Qe2 {[%clk 0:03:01]} 9... Be7 {[%clk 0:03:11.9]}
10. Rd1 {[%clk 0:03:01.7]} 10... O-O {[%clk 0:03:12.5]} 11. c4 {[%clk
0:03:00.1]} 11... bxc4 {[%clk 0:03:12.6]} 12. Bxc4 {[%clk 0:03:01.3]} 12... Bc5
{[%clk 0:03:14.1]} 13. Be3 {[%clk 0:02:57.5]} 13... Bxe3 {[%clk 0:03:15.4]} 14.
Qxe3 {[%clk 0:02:58.9]} 14... Qb8 {[%clk 0:03:16.9]} 15. Bb3 {[%clk 0:02:52.4]}
15... Na5 {[%clk 0:03:18.4]} 16. Nbd2 {[%clk 0:02:42.8]} 16... Nxb3 {[%clk
0:03:18.1]} 17. Nxb3 {[%clk 0:02:37.5]} 17... c5 {[%clk 0:03:19.4]} 18. Nxc5
{[%clk 0:02:36.1]} 18... Nxc5 {[%clk 0:03:21.3]} 19. Qxc5 {[%clk 0:02:37.4]}
19... Qxb2 {[%clk 0:03:22.8]} 20. Qe3 {[%clk 0:02:17.3]} 20... Rfc8 {[%clk
0:03:19.6]} 21. Nd4 {[%clk 0:02:18]} 21... Rc4 {[%clk 0:03:12.9]} 22. f4 {[%clk
0:02:13.1]} 22... g6 {[%clk 0:03:09.4]} 23. Rab1 {[%clk 0:02:11.6]} 23... Qxa2
{[%clk 0:03:06.4]} 24. f5 {[%clk 0:02:04.6]} 24... Rxd4 {[%clk 0:02:49.9]} 25.
Qxd4 {[%clk 0:02:03.4]} 25... Bxf5 {[%clk 0:02:51]} 26. Ra1 {[%clk 0:01:45.1]}
26... Qe2 {[%clk 0:02:43.3]} 27. Qxd5 {[%clk 0:01:44.2]} 27... Rc8 {[%clk
0:02:26.3]} 28. Re1 {[%clk 0:01:37.3]} 28... Qb5 {[%clk 0:02:12.7]} 29. Qd6
{[%clk 0:01:35.4]} 29... Rc6 {[%clk 0:02:03.7]} 30. Qd8+ {[%clk 0:01:34]} 30...
Kg7 {[%clk 0:02:05.1]} 31. Rac1 {[%clk 0:01:27]} 31... Qb6+ {[%clk 0:01:45.2]}
32. Qxb6 {[%clk 0:01:26.6]} 32... Rxb6 {[%clk 0:01:47.1]} 33. Ra1 {[%clk
0:01:22]} 33... Be6 {[%clk 0:01:40.7]} 34. Reb1 {[%clk 0:01:17]} 34... Rc6
{[%clk 0:01:41.2]} 35. Rc1 {[%clk 0:01:18]} 35... Rb6 {[%clk 0:01:42.6]} 36.
Rab1 {[%clk 0:01:19]} 36... Rb5 {[%clk 0:01:41.4]} 37. Rxb5 {[%clk 0:01:17.5]}
37... axb5 {[%clk 0:01:43.3]} 38. Rc6 {[%clk 0:01:12.5]} 38... b4 {[%clk
0:01:44]} 39. Rb6 {[%clk 0:01:13.8]} 39... b3 {[%clk 0:01:45.2]} 40. Kf2 {[%clk
0:01:15.4]} 40... g5 {[%clk 0:01:45.2]} 41. Ke3 {[%clk 0:01:14]} 41... h5 {[%clk
0:01:44.2]} 42. Kd4 {[%clk 0:01:09.5]} 42... Kg6 {[%clk 0:01:45.6]} 43. Ke4
{[%clk 0:00:54.1]} 43... h4 {[%clk 0:01:44.1]} 44. Rb8 {[%clk 0:00:53]} 44...
Bf5+ {[%clk 0:01:42.2]} 45. Kd4 {[%clk 0:00:49.1]} 45... Be6 {[%clk 0:01:40.4]}
46. Ke4 {[%clk 0:00:41.7]} 46... Bf5+ {[%clk 0:01:41.5]} 47. Kd4 {[%clk
0:00:38.1]} 47... Be6 {[%clk 0:01:42.1]} 1/2-1/2

[Event "*** Titled Tuesday Blitz"]
[Site "Chess.com"]
[Date "2020.02.04"]
[Round "6"]
[White "ChessPlayer202202"]
[Black "2nd_life"]
[Result "0-1"]
[WhiteElo "2253"]
[BlackElo "2484"]
[TimeControl "180+2"]
[EndTime "14:18:00 PST"]
[Termination "2nd_life won by resignation"]

1. e4 {[%clk 0:03:01.9]} 1... e5 {[%clk 0:03:00.7]} 2. Nf3 {[%clk 0:03:01.8]}
2... Nc6 {[%clk 0:03:01.9]} 3. Bc4 {[%clk 0:03:02.5]} 3... Nf6 {[%clk
0:03:02.7]} 4. d3 {[%clk 0:03:03]} 4... h6 {[%clk 0:03:03.4]} 5. O-O {[%clk
0:03:01.7]} 5... d6 {[%clk 0:03:04.3]} 6. a4 {[%clk 0:02:55.6]} 6... g6 {[%clk
0:03:02.4]} 7. a5 {[%clk 0:02:42]} 7... Bg7 {[%clk 0:03:02.9]} 8. a6 {[%clk
0:02:42.7]} 8... b6 {[%clk 0:03:03.1]} 9. Nc3 {[%clk 0:01:58.2]} 9... O-O {[%clk
0:03:01.1]} 10. h3 {[%clk 0:01:49.2]} 10... Be6 {[%clk 0:02:54.4]} 11. Bb5
{[%clk 0:01:19.3]} 11... Bd7 {[%clk 0:02:44.7]} 12. Be3 {[%clk 0:01:17.6]} 12...
Nh5 {[%clk 0:02:41.9]} 13. Qd2 {[%clk 0:01:13.9]} 13... Kh7 {[%clk 0:02:41.5]}
14. Nd5 {[%clk 0:01:14.7]} 14... Nd4 {[%clk 0:02:19.9]} 15. Bxd4 {[%clk
0:00:56.1]} 15... Bxb5 {[%clk 0:02:18.5]} 16. Be3 {[%clk 0:00:56]} 16... Bd7
{[%clk 0:02:18]} 17. Nh2 {[%clk 0:00:42.6]} 17... f5 {[%clk 0:02:14.5]} 18. exf5
{[%clk 0:00:39.9]} 18... gxf5 {[%clk 0:02:15.2]} 19. f4 {[%clk 0:00:40.7]} 19...
Bc6 {[%clk 0:01:54.5]} 20. Nb4 {[%clk 0:00:30.2]} 20... Bd7 {[%clk 0:01:55]} 21.
d4 {[%clk 0:00:20.1]} 21... Ng3 {[%clk 0:01:49.3]} 22. Rf3 {[%clk 0:00:18.7]}
22... Ne4 {[%clk 0:01:49.4]} 23. Qd1 {[%clk 0:00:17.7]} 23... c5 {[%clk
0:01:47.4]} 24. dxc5 {[%clk 0:00:18.6]} 24... bxc5 {[%clk 0:01:44]} 25. Nd5
{[%clk 0:00:19.3]} 25... Be6 {[%clk 0:01:41.2]} 26. c4 {[%clk 0:00:19.9]} 26...
Rb8 {[%clk 0:01:40.5]} 27. Qc2 {[%clk 0:00:18.1]} 27... Bxd5 {[%clk 0:01:36.5]}
28. cxd5 {[%clk 0:00:18.8]} 28... exf4 {[%clk 0:01:37.5]} 29. Bxf4 {[%clk
0:00:19.8]} 29... Rxb2 {[%clk 0:01:37.7]} 30. Qc4 {[%clk 0:00:15.7]} 30... Bd4+
{[%clk 0:01:36.4]} 31. Kh1 {[%clk 0:00:16.7]} 31... Nf2+ {[%clk 0:01:29.4]} 32.
Rxf2 {[%clk 0:00:17.5]} 32... Rxf2 {[%clk 0:01:30.4]} 33. Rb1 {[%clk 0:00:17.8]}
33... Rxf4 {[%clk 0:01:24.4]} 34. Rb7+ {[%clk 0:00:18.5]} 34... Kh8 {[%clk
0:01:23.8]} 35. Qc1 {[%clk 0:00:20.4]} 35... Qg5 {[%clk 0:01:19]} 36. Nf3 {[%clk
0:00:14.9]} 36... Rxf3 {[%clk 0:01:19.6]} 37. Qxg5 {[%clk 0:00:15.1]} 37... Rf1+
{[%clk 0:01:20.4]} 0-1

[Event "*** Titled Tuesday Blitz"]
[Site "Chess.com"]
[Date "2020.02.04"]
[Round "6"]
[White "arjwezhrtdrz"]
[Black "CzechmVIII"]
[Result "1/2-1/2"]
[WhiteElo "2235"]
[BlackElo "2185"]
[TimeControl "180+2"]
[EndTime "14:18:05 PST"]
[Termination "Game drawn by agreement"]

1. e4 {[%clk 0:03:01.7]} 1... c5 {[%clk 0:03:00.8]} 2. c3 {[%clk 0:03:02.6]}
2... d5 {[%clk 0:02:59.4]} 3. exd5 {[%clk 0:03:03.1]} 3... Nf6 {[%clk
0:03:00.6]} 4. d4 {[%clk 0:03:03.1]} 4... Nxd5 {[%clk 0:02:58.7]} 5. Nf3 {[%clk
0:03:03.3]} 5... e6 {[%clk 0:02:49.3]} 6. Be2 {[%clk 0:03:00.9]} 6... Be7 {[%clk
0:02:47.5]} 7. O-O {[%clk 0:03:01.5]} 7... O-O {[%clk 0:02:48.3]} 8. Nbd2 {[%clk
0:03:01.4]} 8... cxd4 {[%clk 0:02:44.1]} 9. Nxd4 {[%clk 0:03:02.1]} 9... e5
{[%clk 0:02:41.5]} 10. N4b3 {[%clk 0:02:55.4]} 10... Nc6 {[%clk 0:02:38.9]} 11.
Nc4 {[%clk 0:02:48.8]} 11... Be6 {[%clk 0:02:22.8]} 12. Ne3 {[%clk 0:02:45.8]}
12... Rc8 {[%clk 0:02:18.8]} 13. Nxd5 {[%clk 0:02:45.3]} 13... Bxd5 {[%clk
0:02:14.5]} 14. Bf3 {[%clk 0:02:46.1]} 14... Bxf3 {[%clk 0:02:13.3]} 15. Qxf3
{[%clk 0:02:46.7]} 15... Qc7 {[%clk 0:02:07.9]} 16. Be3 {[%clk 0:02:46.3]} 16...
f5 {[%clk 0:02:02.8]} 17. Qd5+ {[%clk 0:02:37.6]} 17... Kh8 {[%clk 0:02:01.4]}
18. Rad1 {[%clk 0:02:38.4]} 18... Bf6 {[%clk 0:01:47.5]} 19. Qc4 {[%clk
0:02:26.8]} 19... Qf7 {[%clk 0:01:31.2]} 20. Qxf7 {[%clk 0:02:23.3]} 20... Rxf7
{[%clk 0:01:32.4]} 21. f3 {[%clk 0:02:23.5]} 21... g6 {[%clk 0:01:21.4]} 22. Rd5
{[%clk 0:02:17.4]} 22... Rd8 {[%clk 0:01:21.5]} 23. Rfd1 {[%clk 0:02:15.4]}
23... Rxd5 {[%clk 0:01:21.9]} 24. Rxd5 {[%clk 0:02:16.1]} 24... Kg7 {[%clk
0:01:16]} 25. Kf1 {[%clk 0:02:15.6]} 25... b6 {[%clk 0:01:10.4]} 26. a4 {[%clk
0:02:12]} 26... Re7 {[%clk 0:01:11]} 27. Bf2 {[%clk 0:02:05.8]} 27... e4 {[%clk
0:01:09.9]} 28. fxe4 {[%clk 0:02:02.9]} 28... fxe4 {[%clk 0:01:10.8]} 29. Be3
{[%clk 0:01:58.8]} 29... Ne5 {[%clk 0:01:08.8]} 30. h3 {[%clk 0:01:57]} 30...
Nd3 {[%clk 0:01:09]} 31. a5 {[%clk 0:01:37.4]} 31... Nxb2 {[%clk 0:01:05.8]} 32.
axb6 {[%clk 0:01:35.8]} 32... axb6 {[%clk 0:01:06.7]} 33. Bxb6 {[%clk
0:01:30.1]} 33... Bxc3 {[%clk 0:01:07.5]} 34. Bd4+ {[%clk 0:01:27.3]} 34... Bxd4
{[%clk 0:01:06.6]} 35. Nxd4 {[%clk 0:01:29.1]} 35... Nc4 {[%clk 0:01:02.4]} 36.
Ke2 {[%clk 0:01:28.3]} 36... Kf6 {[%clk 0:00:59]} 37. Rc5 {[%clk 0:01:28.4]}
37... Ne5 {[%clk 0:00:56.3]} 38. Ke3 {[%clk 0:01:21.3]} 38... g5 {[%clk
0:00:47.7]} 39. Nc6 {[%clk 0:01:13.8]} 39... Nxc6 {[%clk 0:00:46.9]} 40. Rxc6+
{[%clk 0:01:14.7]} 40... Re6 {[%clk 0:00:39.9]} 1/2-1/2

[Event "*** Titled Tuesday Blitz"]
[Site "Chess.com"]
[Date "2020.02.04"]
[Round "6"]
[White "Kimster98"]
[Black "joshdaruca"]
[Result "0-1"]
[WhiteElo "2693"]
[BlackElo "2713"]
[TimeControl "180+2"]
[EndTime "14:18:11 PST"]
[Termination "joshdaruca won by resignation"]

1. Nf3 {[%clk 0:02:53.5]} 1... c5 {[%clk 0:02:46.6]} 2. c4 {[%clk 0:02:52.6]}
2... Nc6 {[%clk 0:02:46.5]} 3. d4 {[%clk 0:02:53.2]} 3... cxd4 {[%clk
0:02:46.9]} 4. Nxd4 {[%clk 0:02:55.1]} 4... g6 {[%clk 0:02:48.5]} 5. e4 {[%clk
0:02:53.8]} 5... Bg7 {[%clk 0:02:49.5]} 6. Be3 {[%clk 0:02:55.3]} 6... Nf6
{[%clk 0:02:49.4]} 7. Nc3 {[%clk 0:02:54.1]} 7... d6 {[%clk 0:02:49.7]} 8. Be2
{[%clk 0:02:55.3]} 8... Bd7 {[%clk 0:02:47.7]} 9. O-O {[%clk 0:02:53.7]} 9...
O-O {[%clk 0:02:47.2]} 10. h3 {[%clk 0:02:53.4]} 10... a6 {[%clk 0:02:31.3]} 11.
Rc1 {[%clk 0:02:18.8]} 11... Nxd4 {[%clk 0:02:19.3]} 12. Bxd4 {[%clk 0:02:20.7]}
12... Qa5 {[%clk 0:02:18.4]} 13. f4 {[%clk 0:02:08.5]} 13... Bc6 {[%clk
0:02:09.5]} 14. Bf3 {[%clk 0:02:07.4]} 14... Nd7 {[%clk 0:02:06.6]} 15. Bxg7
{[%clk 0:02:06.1]} 15... Kxg7 {[%clk 0:02:08.5]} 16. Qd4+ {[%clk 0:02:07.1]}
16... Kg8 {[%clk 0:02:03.8]} 17. Nd5 {[%clk 0:02:04.7]} 17... Bxd5 {[%clk
0:02:04.3]} 18. exd5 {[%clk 0:02:06.6]} 18... Qc5 {[%clk 0:02:02.6]} 19. Qxc5
{[%clk 0:02:04.1]} 19... Nxc5 {[%clk 0:02:04.5]} 20. Rc3 {[%clk 0:01:54.2]}
20... a5 {[%clk 0:02:02.8]} 21. Re1 {[%clk 0:01:54.1]} 21... Rfe8 {[%clk
0:02:03.4]} 22. b3 {[%clk 0:01:54.9]} 22... Rab8 {[%clk 0:01:58.4]} 23. Be2
{[%clk 0:01:51]} 23... e5 {[%clk 0:01:43.9]} 24. dxe6 {[%clk 0:01:51.9]} 24...
Rxe6 {[%clk 0:01:44.9]} 25. Kf1 {[%clk 0:01:41.6]} 25... Rbe8 {[%clk 0:00:56.6]}
26. Rcc1 {[%clk 0:01:40]} 26... b6 {[%clk 0:00:55.8]} 27. Rcd1 {[%clk
0:01:17.1]} 27... Kf8 {[%clk 0:00:46]} 28. g3 {[%clk 0:00:56.3]} 28... Re3
{[%clk 0:00:44.2]} 29. Kf2 {[%clk 0:00:47.2]} 29... Rc3 {[%clk 0:00:41.9]} 30.
Kg2 {[%clk 0:00:45.5]} 30... Rc2 {[%clk 0:00:40.9]} 31. Kf1 {[%clk 0:00:46.6]}
31... Rxa2 {[%clk 0:00:38.2]} 32. Rxd6 {[%clk 0:00:46.4]} 32... Nxb3 {[%clk
0:00:35.2]} 33. Rxb6 {[%clk 0:00:47.7]} 33... Nd2+ {[%clk 0:00:34]} 34. Kf2
{[%clk 0:00:41.8]} 34... Ne4+ {[%clk 0:00:33.2]} 35. Kf3 {[%clk 0:00:39.3]}
35... Nc3 {[%clk 0:00:27.2]} 0-1

[Event "*** Titled Tuesday Blitz"]
[Site "Chess.com"]
[Date "2020.02.04"]
[Round "6"]
[White "Sanyura"]
[Black "SuperCheese"]
[Result "1/2-1/2"]
[WhiteElo "2496"]
[BlackElo "2685"]
[TimeControl "180+2"]
[EndTime "14:18:21 PST"]
[Termination "Game drawn by repetition"]

1. e4 {[%clk 0:03:01.9]} 1... e5 {[%clk 0:02:59.9]} 2. Nf3 {[%clk 0:03:01.1]}
2... Nc6 {[%clk 0:03:01.3]} 3. d4 {[%clk 0:03:01.8]} 3... exd4 {[%clk 0:03:02]}
4. Nxd4 {[%clk 0:03:03.4]} 4... Nf6 {[%clk 0:03:03.6]} 5. Nxc6 {[%clk
0:03:03.5]} 5... bxc6 {[%clk 0:03:05.5]} 6. Bd3 {[%clk 0:03:05.1]} 6... Bc5
{[%clk 0:03:04.4]} 7. O-O {[%clk 0:03:06]} 7... d6 {[%clk 0:03:05.1]} 8. Nc3
{[%clk 0:03:05.3]} 8... O-O {[%clk 0:03:04.6]} 9. Bg5 {[%clk 0:03:04.6]} 9... h6
{[%clk 0:03:03.9]} 10. Bh4 {[%clk 0:03:04.7]} 10... Rb8 {[%clk 0:03:04.9]} 11.
Rb1 {[%clk 0:03:00.5]} 11... Qe7 {[%clk 0:03:03.9]} 12. Kh1 {[%clk 0:02:40.5]}
12... Qe6 {[%clk 0:01:55.9]} 13. f4 {[%clk 0:02:29]} 13... Bd4 {[%clk 0:01:56]}
14. Ne2 {[%clk 0:02:24.1]} 14... Bxb2 {[%clk 0:01:54]} 15. Nd4 {[%clk
0:02:03.1]} 15... Qg4 {[%clk 0:00:54.7]} 16. Bxf6 {[%clk 0:01:56]} 16... Qxd1
{[%clk 0:00:54.5]} 17. Rfxd1 {[%clk 0:01:53.5]} 17... gxf6 {[%clk 0:00:56]} 18.
Nxc6 {[%clk 0:01:54.2]} 18... Rb6 {[%clk 0:00:53.8]} 19. Ne7+ {[%clk 0:01:55.3]}
19... Kg7 {[%clk 0:00:54.4]} 20. Nd5 {[%clk 0:01:55.3]} 20... Rb8 {[%clk
0:00:19]} 21. Nxc7 {[%clk 0:01:56.1]} 21... Be6 {[%clk 0:00:20.1]} 22. Nb5
{[%clk 0:01:52.6]} 22... a6 {[%clk 0:00:15.4]} 23. Rxb2 {[%clk 0:01:51.7]} 23...
axb5 {[%clk 0:00:16.7]} 24. a3 {[%clk 0:01:40.9]} 24... Rfc8 {[%clk 0:00:07.9]}
25. Kg1 {[%clk 0:01:39.5]} 25... Rc3 {[%clk 0:00:08.6]} 26. Rxb5 {[%clk
0:01:31.6]} 26... Rxd3 {[%clk 0:00:07.5]} 27. Rxd3 {[%clk 0:01:32.4]} 27... Rxb5
{[%clk 0:00:08.5]} 28. Rxd6 {[%clk 0:01:33.4]} 28... Rb1+ {[%clk 0:00:09.8]} 29.
Kf2 {[%clk 0:01:33.9]} 29... Rb2 {[%clk 0:00:11.3]} 30. Rc6 {[%clk 0:01:33.5]}
30... Bb3 {[%clk 0:00:11.2]} 31. Ke3 {[%clk 0:01:18.6]} 31... Bxc2 {[%clk
0:00:12.4]} 32. e5 {[%clk 0:01:13]} 32... fxe5 {[%clk 0:00:13.3]} 33. fxe5
{[%clk 0:01:14.9]} 33... Ra2 {[%clk 0:00:15]} 34. Kf4 {[%clk 0:01:13.2]} 34...
Ba4 {[%clk 0:00:14.8]} 35. Ra6 {[%clk 0:01:14]} 35... Rxa3 {[%clk 0:00:10.5]}
36. Ra7 {[%clk 0:01:13.7]} 36... Kg6 {[%clk 0:00:10.3]} 37. Ra6+ {[%clk
0:01:14.2]} 37... Kg7 {[%clk 0:00:11.6]} 38. Ra7 {[%clk 0:01:15.2]} 38... Kf8
{[%clk 0:00:12.8]} 39. Ra8+ {[%clk 0:01:07.9]} 39... Kg7 {[%clk 0:00:13.2]} 40.
Ra7 {[%clk 0:01:08.8]} 1/2-1/2

[Event "*** Titled Tuesday Blitz"]
[Site "Chess.com"]
[Date "2020.02.04"]
[Round "6"]
[White "arminmusovic"]
[Black "guillembaches"]
[Result "1/2-1/2"]
[WhiteElo "2523"]
[BlackElo "2395"]
[TimeControl "180+2"]
[EndTime "14:18:28 PST"]
[Termination "Game drawn by repetition"]

1. e4 {[%clk 0:03:01.9]} 1... c5 {[%clk 0:03:01.1]} 2. c3 {[%clk 0:03:03.1]}
2... d5 {[%clk 0:02:59]} 3. exd5 {[%clk 0:03:05]} 3... Qxd5 {[%clk 0:03:00.5]}
4. h3 {[%clk 0:03:06.7]} 4... e5 {[%clk 0:02:58.3]} 5. Na3 {[%clk 0:03:07.3]}
5... Nf6 {[%clk 0:02:53.4]} 6. Nf3 {[%clk 0:03:08.5]} 6... e4 {[%clk 0:02:33.5]}
7. Bc4 {[%clk 0:03:09.2]} 7... Qh5 {[%clk 0:02:33.5]} 8. Qe2 {[%clk 0:02:38.9]}
8... Be7 {[%clk 0:02:30.2]} 9. Ng1 {[%clk 0:02:20.2]} 9... Qxe2+ {[%clk
0:02:21.9]} 10. Nxe2 {[%clk 0:02:19.8]} 10... Nc6 {[%clk 0:02:19.8]} 11. d3
{[%clk 0:02:16]} 11... exd3 {[%clk 0:01:57.4]} 12. Bxd3 {[%clk 0:02:17.9]} 12...
Ne5 {[%clk 0:01:58.3]} 13. Bb5+ {[%clk 0:02:17.4]} 13... Bd7 {[%clk 0:01:56]}
14. O-O {[%clk 0:02:18.6]} 14... O-O-O {[%clk 0:01:50.4]} 15. Bf4 {[%clk
0:02:09.8]} 15... Bd6 {[%clk 0:01:40.5]} 16. Rfd1 {[%clk 0:02:06.6]} 16... Bb8
{[%clk 0:01:40.7]} 17. Bxd7+ {[%clk 0:02:01.9]} 17... Rxd7 {[%clk 0:01:39.5]}
18. Rxd7 {[%clk 0:02:02]} 18... Kxd7 {[%clk 0:01:37.9]} 19. Rd1+ {[%clk
0:02:01.4]} 19... Kc6 {[%clk 0:01:38.7]} 20. Bxe5 {[%clk 0:02:01.3]} 20... Bxe5
{[%clk 0:01:39.4]} 21. Nc4 {[%clk 0:02:03.2]} 21... Re8 {[%clk 0:01:29]} 22. Kf1
{[%clk 0:02:00.5]} 22... Bc7 {[%clk 0:01:26.1]} 23. a4 {[%clk 0:01:55.9]} 23...
b6 {[%clk 0:01:20.6]} 24. b4 {[%clk 0:01:48.1]} 24... a6 {[%clk 0:01:16.5]} 25.
Na3 {[%clk 0:01:38.8]} 25... Rd8 {[%clk 0:01:02]} 26. b5+ {[%clk 0:01:28.8]}
26... axb5 {[%clk 0:01:02.7]} 27. axb5+ {[%clk 0:01:28.1]} 27... Kb7 {[%clk
0:01:03.8]} 28. Rxd8 {[%clk 0:01:23.7]} 28... Bxd8 {[%clk 0:01:05.7]} 29. c4
{[%clk 0:01:23]} 29... Ne4 {[%clk 0:00:57.9]} 30. f3 {[%clk 0:01:22.4]} 30...
Nd6 {[%clk 0:00:54.6]} 31. Nc3 {[%clk 0:01:10.5]} 31... Bf6 {[%clk 0:00:52.3]}
32. Ncb1 {[%clk 0:01:11.8]} 32... Kc7 {[%clk 0:00:48.4]} 33. Ke2 {[%clk
0:01:13]} 33... Nf5 {[%clk 0:00:47.6]} 34. Kd3 {[%clk 0:01:13.8]} 34... Nh4
{[%clk 0:00:47]} 35. Nd2 {[%clk 0:01:08.4]} 35... Nxg2 {[%clk 0:00:46.9]} 36.
Ne4 {[%clk 0:01:10]} 36... Nf4+ {[%clk 0:00:47.6]} 37. Ke3 {[%clk 0:01:08.7]}
37... Nxh3 {[%clk 0:00:47.3]} 38. Nxf6 {[%clk 0:01:09.6]} 38... gxf6 {[%clk
0:00:48.2]} 39. Nb1 {[%clk 0:01:11.3]} 39... Ng5 {[%clk 0:00:46.6]} 40. Nc3
{[%clk 0:01:12.2]} 40... Ne6 {[%clk 0:00:44.9]} 41. Nd5+ {[%clk 0:01:13.3]}
41... Kb7 {[%clk 0:00:45.1]} 42. Nxf6 {[%clk 0:01:14.4]} 42... h6 {[%clk
0:00:43.9]} 43. Ke4 {[%clk 0:01:14]} 43... Nd4 {[%clk 0:00:44.3]} 44. f4 {[%clk
0:01:12.9]} 44... Nb3 {[%clk 0:00:43.5]} 45. Kd3 {[%clk 0:01:07.7]} 45... Nd4
{[%clk 0:00:40.7]} 46. Ke4 {[%clk 0:01:08.5]} 46... Nb3 {[%clk 0:00:38.4]} 47.
Kd3 {[%clk 0:01:05.8]} 47... Nd4 {[%clk 0:00:39.2]} 48. Ke4 {[%clk 0:01:07.1]}
1/2-1/2